fUST/lending_fUST_20260526
["ID","MTS","AMOUNT","RATE_DAILY","PERIOD"]
[423048934,1779797922000,-537.75687396,5.006e-05,2]
[423048936,1779797942000,-398.46878128,5.061e-05,2]
[423048937,1779797966000,243.0,0.0001476,30]
[423048940,1779797995000,-300.0,5.114e-05,2]
[423048941,1779798049000,-300.0,5.114e-05,2]
[423048942,1779798102000,-300.0,5.113e-05,2]
[423048943,1779798155000,-300.0,5.113e-05,2]
[423048944,1779798209000,-300.0,5.112e-05,2]
[423048945,1779798262000,-698.49695077,5.113e-05,2]
[423048946,1779798308000,-691.51198126,5.112e-05,2]
[423048951,1779798442000,262.0,0.0001476,30]
[423048952,1779798490000,-300.0,5.11e-05,2]
[423048953,1779798501000,-684.59686145,5.111e-05,2]
[423048954,1779798543000,-677.75089284,5.11e-05,2]
[423048955,1779798554000,-300.0,5.109e-05,2]
[423048956,1779798554000,-377.75089284,5.11e-05,2]
[423048960,1779798597000,-300.0,5.11e-05,2]
[423048961,1779798608000,-677.75089284,5.11e-05,2]
[423048978,1779798631000,-300.0,5.109e-05,2]
[423048976,1779798631000,-300.0,5.109e-05,2]
[423049013,1779798632000,-500.0,5.11e-05,2]
[423049009,1779798632000,-500.0,5.11e-05,2]
[423049003,1779798632000,-677.75089284,5.11e-05,2]
[423048999,1779798632000,-648.28038552,5.11e-05,2]
[423049007,1779798632000,-500.0,5.11e-05,2]
[423048996,1779798632000,-29.47050732,5.11e-05,2]
[423048994,1779798632000,-256.47874212,5.11e-05,2]
[423049015,1779798632000,-500.0,5.11e-05,2]
[423048992,1779798632000,-421.27215072,5.11e-05,2]
[423048982,1779798632000,-677.75089284,5.11e-05,2]
[423048980,1779798632000,-1200.0,5.109e-05,2]
[423048990,1779798632000,-213.89560829,5.11e-05,2]
[423048986,1779798632000,-677.75089284,5.11e-05,2]
[423048988,1779798632000,-463.85528455,5.11e-05,2]
[423048984,1779798632000,-677.75089284,5.11e-05,2]
[423049004,1779798632000,-500.0,5.11e-05,2]
[423049001,1779798632000,-677.75089284,5.11e-05,2]
[423049036,1779798632000,-500.0,5.11e-05,2]
[423049017,1779798632000,-500.0,5.11e-05,2]
[423049011,1779798632000,-500.0,5.11e-05,2]
[423049050,1779798632000,-359.8667128,5.11e-05,2]
[423049046,1779798632000,-421.88507906,5.11e-05,2]
[423049044,1779798632000,-78.11492094,5.11e-05,2]
[423049042,1779798632000,-500.0,5.11e-05,2]
[423049040,1779798632000,-500.0,5.11e-05,2]
[423049028,1779798632000,-677.75089284,5.11e-05,2]
[423049023,1779798632000,-500.0,5.11e-05,2]
[423049048,1779798632000,-85.06542175,5.11e-05,2]
[423049021,1779798632000,-500.0,5.11e-05,2]
[423049024,1779798632000,-500.0,5.11e-05,2]
[423049034,1779798632000,-500.0,5.11e-05,2]
[423049027,1779798632000,-500.0,5.11e-05,2]
[423049032,1779798632000,-500.0,5.11e-05,2]
[423049030,1779798632000,-500.0,5.11e-05,2]
[423049038,1779798632000,-500.0,5.11e-05,2]
[423049019,1779798632000,-677.75089284,5.11e-05,2]
[423049089,1779798638000,-500.0,5.11e-05,2]
[423049077,1779798638000,-500.0,5.11e-05,2]
[423049078,1779798638000,-500.0,5.11e-05,2]
[423049079,1779798638000,-508.64629627,5.11e-05,2]
[423049080,1779798638000,-500.0,5.11e-05,2]
[423049081,1779798638000,-500.0,5.11e-05,2]
[423049082,1779798638000,-500.0,5.11e-05,2]
[423049086,1779798638000,-500.0,5.11e-05,2]
[423049084,1779798638000,-500.0,5.11e-05,2]
[423049085,1779798638000,-500.0,5.11e-05,2]
[423049087,1779798638000,-500.0,5.11e-05,2]
[423049088,1779798638000,-500.0,5.11e-05,2]
[423049076,1779798638000,-500.0,5.11e-05,2]
[423049083,1779798638000,-500.0,5.11e-05,2]
[423049075,1779798638000,-500.0,5.11e-05,2]
[423049067,1779798638000,-500.0,5.11e-05,2]
[423049072,1779798638000,-500.0,5.11e-05,2]
[423049073,1779798638000,-500.0,5.11e-05,2]
[423049071,1779798638000,-500.0,5.11e-05,2]
[423049070,1779798638000,-500.0,5.11e-05,2]
[423049068,1779798638000,-500.0,5.11e-05,2]
[423049066,1779798638000,-500.0,5.11e-05,2]
[423049063,1779798638000,-500.0,5.11e-05,2]
[423049064,1779798638000,-500.0,5.11e-05,2]
[423049069,1779798638000,-500.0,5.11e-05,2]
[423049065,1779798638000,-500.0,5.11e-05,2]
[423049062,1779798638000,-17.31099149,5.11e-05,2]
[423049061,1779798638000,-482.68900851,5.11e-05,2]
[423049060,1779798638000,-55.06786545,5.11e-05,2]
[423049090,1779798638000,-500.0,5.11e-05,2]
[423049074,1779798638000,-500.0,5.11e-05,2]
[423049091,1779798638000,-500.0,5.11e-05,2]
[423049124,1779798638000,-703.81823486,5.11e-05,2]
[423049093,1779798638000,-465.79429494,5.11e-05,2]
[423049092,1779798638000,-500.0,5.11e-05,2]
[423049121,1779798638000,-703.81823486,5.11e-05,2]
[423049115,1779798638000,-500.0,5.11e-05,2]
[423049122,1779798638000,-703.81823486,5.11e-05,2]
[423049123,1779798638000,-703.81823486,5.11e-05,2]
[423049116,1779798638000,-703.81823486,5.11e-05,2]
[423049118,1779798638000,-703.81823486,5.11e-05,2]
[423049117,1779798638000,-703.81823486,5.11e-05,2]
[423049119,1779798638000,-703.81823486,5.11e-05,2]
[423049113,1779798638000,-500.0,5.11e-05,2]
[423049114,1779798638000,-677.75089284,5.11e-05,2]
[423049112,1779798638000,-500.0,5.11e-05,2]
[423049111,1779798638000,-500.0,5.11e-05,2]
[423049110,1779798638000,-500.0,5.11e-05,2]
[423049109,1779798638000,-500.0,5.11e-05,2]
[423049120,1779798638000,-703.81823486,5.11e-05,2]
[423049107,1779798638000,-500.0,5.11e-05,2]
[423049108,1779798638000,-500.0,5.11e-05,2]
[423049095,1779798638000,-500.0,5.11e-05,2]
[423049096,1779798638000,-677.75089284,5.11e-05,2]
[423049097,1779798638000,-500.0,5.11e-05,2]
[423049098,1779798638000,-500.0,5.11e-05,2]
[423049099,1779798638000,-500.0,5.11e-05,2]
[423049100,1779798638000,-500.0,5.11e-05,2]
[423049094,1779798638000,-500.0,5.11e-05,2]
[423049102,1779798638000,-458.41789276,5.11e-05,2]
[423049103,1779798638000,-500.0,5.11e-05,2]
[423049104,1779798638000,-500.0,5.11e-05,2]
[423049105,1779798638000,-500.0,5.11e-05,2]
[423049106,1779798638000,-500.0,5.11e-05,2]
[423049101,1779798638000,-500.0,5.11e-05,2]
[423049142,1779798639000,-300.0,5.326e-05,2]
[423049143,1779798639000,-300.0,5.326e-05,2]
[423049147,1779798639000,-471.61269463,5.326e-05,2]
[423049144,1779798639000,-300.0,5.326e-05,2]
[423049145,1779798639000,-300.0,5.326e-05,2]
[423049146,1779798639000,-300.0,5.326e-05,2]
[423049153,1779798639000,-512.4596653,5.479e-05,2]
[423049156,1779798639000,-388.0,6.182e-05,2]
[423049154,1779798639000,-1680.0,5.62e-05,2]
[423049155,1779798639000,-720.0,5.859e-05,2]
[423049158,1779798639000,-151.0,6.5e-05,2]
[423049149,1779798639000,-500.0,5.479e-05,2]
[423049150,1779798639000,-500.0,5.479e-05,2]
[423049157,1779798639000,-864.0,6.445e-05,2]
[423049148,1779798639000,-128.38730537,5.326e-05,2]
[423049140,1779798639000,-300.0,5.326e-05,2]
[423049125,1779798639000,-500.0,5.11e-05,2]
[423049138,1779798639000,-300.0,5.326e-05,2]
[423049159,1779798639000,-151.0,6.5e-05,2]
[423049126,1779798639000,-500.0,5.11e-05,2]
[423049129,1779798639000,-678.15819505,5.11e-05,2]
[423049128,1779798639000,-678.15819505,5.11e-05,2]
[423049127,1779798639000,-703.81823486,5.11e-05,2]
[423049135,1779798639000,-300.0,5.326e-05,2]
[423049141,1779798639000,-300.0,5.326e-05,2]
[423049136,1779798639000,-300.0,5.326e-05,2]
[423049134,1779798639000,-300.0,5.326e-05,2]
[423049137,1779798639000,-300.0,5.326e-05,2]
[423049131,1779798639000,-5000.0,5.111e-05,2]
[423049132,1779798639000,-300.0,5.326e-05,2]
[423049130,1779798639000,-678.15819505,5.11e-05,2]
[423049139,1779798639000,-300.0,5.326e-05,2]
[423049133,1779798639000,-300.0,5.326e-05,2]
[423049152,1779798639000,-609.59684501,5.479e-05,2]
[423049187,1779798639000,-500.0,9.003e-05,2]
[423049160,1779798639000,-374.3690719,6.657e-05,2]
[423049179,1779798639000,-198.94985924,8.493e-05,2]
[423049181,1779798639000,-1000.0,8.578e-05,2]
[423049182,1779798639000,-492.0,8.578e-05,2]
[423049185,1779798639000,-500.0,8.767e-05,2]
[423049186,1779798639000,-445.44,8.941e-05,2]
[423049188,1779798639000,-294.29,9.02e-05,2]
[423049183,1779798639000,-1272.55,8.63e-05,2]
[423049195,1779798639000,-831.71238038,9.2e-05,2]
[423049191,1779798639000,-899.64290295,9.067e-05,2]
[423049190,1779798639000,-1272.55,9.061e-05,2]
[423049192,1779798639000,-281.16,9.198e-05,2]
[423049193,1779798639000,-1006.82722297,9.2e-05,2]
[423049194,1779798639000,-1343.78126623,9.2e-05,2]
[423049151,1779798639000,-500.0,5.479e-05,2]
[423049189,1779798639000,-500.0,9.041e-05,2]
[423049176,1779798639000,-500.0,8.219e-05,2]
[423049178,1779798639000,-500.0,8.493e-05,2]
[423049180,1779798639000,-500.0,8.553e-05,2]
[423049161,1779798639000,-152.0,6.805e-05,7]
[423049167,1779798639000,-160.0,8.194e-05,2]
[423049166,1779798639000,-204.40717489,8e-05,2]
[423049162,1779798639000,-326.065895,7.061e-05,2]
[423049165,1779798639000,-244.0,7.798e-05,2]
[423049184,1779798639000,-636.27,8.63e-05,2]
[423049164,1779798639000,-1000.0,7.798e-05,2]
[423049163,1779798639000,-1000.0,7.089e-05,2]
[423049169,1779798639000,-549.843569,8.219e-05,2]
[423049171,1779798639000,-171.156166,8.219e-05,2]
[423049172,1779798639000,-385.68292458,8.219e-05,2]
[423049173,1779798639000,-500.0,8.219e-05,2]
[423049175,1779798639000,-500.0,8.219e-05,2]
[423049174,1779798639000,-342.86576128,8.219e-05,2]
[423049177,1779798639000,-438.03436225,8.493e-05,2]
[423049170,1779798639000,-500.0,8.219e-05,2]
[423049206,1779798640000,-4052.64258996,9.2e-05,2]
[423049231,1779798643000,-599.7619353,9.067e-05,2]
[423049234,1779798643000,-5377.7289,9.2e-05,2]
[423049232,1779798643000,-5142.046701,9.2e-05,2]
[423049239,1779798646000,-7155.37159671,9.2e-05,2]
[423049242,1779798646000,-64384.96069837,9.2e-05,2]
[423049243,1779798646000,-448.3963019,9.2e-05,2]
[423049241,1779798646000,-5627.2826499,9.2e-05,2]
[423049238,1779798646000,-399.8412902,9.067e-05,2]
[423049240,1779798646000,-337.2,9.2e-05,2]
[423049244,1779798647000,-3844.51464257,9.2e-05,2]
[423049245,1779798672000,-1227.97265863,8.976e-05,2]
[423049246,1779798709000,2689.0,0.00017808,120]
[423049251,1779798875000,-1872.8988975,0.00020207,30]
[423049247,1779798875000,-5267468.8950754,0.00020207,120]
[423049248,1779798875000,-2599.63215685,0.00020207,120]
[423049250,1779798875000,-3000.0,0.00020207,120]
[423049249,1779798875000,-26600.0,0.00020207,30]
[423049253,1779798875000,-2297.69351285,0.00020207,120]
[423049254,1779798875000,-1592.28698543,0.00020207,30]
[423049255,1779798875000,-303.68806028,0.00020207,30]
[423049257,1779798875000,-1106.51558247,0.00020207,60]
[423049258,1779798875000,-3683.59280398,0.00020207,120]
[423049259,1779798875000,-5369.83759226,0.00020207,120]
[423049256,1779798875000,-1263.20246719,0.00020207,30]
[423049252,1779798875000,-116532.05427588,0.00020207,30]
[423049270,1779798876000,-5436.96576968,0.00020207,30]
[423049273,1779798876000,-4577.28636914,0.00020207,120]
[423049275,1779798876000,-1058.56599726,0.00020207,60]
[423049280,1779798876000,-161.09884689,0.00020207,30]
[423049276,1779798876000,-1258.03511872,0.00020207,60]
[423049277,1779798876000,-4177.4927002,0.00020207,120]
[423049272,1779798876000,-1000.0,0.00020207,30]
[423049274,1779798876000,-200.03543579,0.00020207,30]
[423049271,1779798876000,-1610.11636751,0.00020207,30]
[423049262,1779798876000,-1965.44032468,0.00020207,30]
[423049269,1779798876000,-4073.87572679,0.00020207,120]
[423049267,1779798876000,-1982.22264288,0.00020207,60]
[423049266,1779798876000,-1176.82522577,0.00020207,30]
[423049265,1779798876000,-200.0,0.00020207,120]
[423049264,1779798876000,-186.58036094,0.00020207,31]
[423049260,1779798876000,-4743.21678616,0.00020207,60]
[423049263,1779798876000,-2825.72331688,0.00020207,120]
[423049261,1779798876000,-2300.0,0.00020207,120]
[423049268,1779798876000,-1260.945702,0.00020207,30]
[423049278,1779798876000,-1041.66637077,0.00020207,30]
[423049296,1779798876000,-400.0,0.00020207,30]
[423049281,1779798876000,-1276.02630447,0.00020207,30]
[423049279,1779798876000,-5116.6178744,0.00020207,120]
[423049300,1779798876000,-400.0,0.00020207,30]
[423049298,1779798876000,-400.0,0.00020207,30]
[423049299,1779798876000,-400.0,0.00020207,30]
[423049297,1779798876000,-400.0,0.00020207,30]
[423049295,1779798876000,-400.0,0.00020207,30]
[423049294,1779798876000,-400.0,0.00020207,30]
[423049290,1779798876000,-400.0,0.00020207,30]
[423049292,1779798876000,-400.0,0.00020207,30]
[423049293,1779798876000,-400.0,0.00020207,30]
[423049289,1779798876000,-400.0,0.00020207,30]
[423049288,1779798876000,-400.0,0.00020207,30]
[423049284,1779798876000,-389.15612283,0.00020207,30]
[423049286,1779798876000,-400.0,0.00020207,30]
[423049287,1779798876000,-400.0,0.00020207,30]
[423049285,1779798876000,-400.0,0.00020207,30]
[423049282,1779798876000,-4201.13813931,0.00020207,120]
[423049283,1779798876000,-420.0,0.00020207,30]
[423049291,1779798876000,-400.0,0.00020207,30]
[423049307,1779798877000,-400.0,0.00020207,30]
[423049305,1779798877000,-400.0,0.00020207,30]
[423049304,1779798877000,-400.0,0.00020207,30]
[423049303,1779798877000,-400.0,0.00020207,30]
[423049301,1779798877000,-400.0,0.00020207,30]
[423049306,1779798877000,-400.0,0.00020207,30]
[423049302,1779798877000,-400.0,0.00020207,30]
[423049308,1779798877000,-437.02605469,0.00020207,30]
[423049313,1779798877000,-400.0,0.00020207,30]
[423049312,1779798877000,-400.0,0.00020207,30]
[423049310,1779798877000,-400.0,0.00020207,30]
[423049311,1779798877000,-400.0,0.00020207,30]
[423049314,1779798877000,-373.80881781,0.00020207,30]
[423049315,1779798877000,-400.0,0.00020207,30]
[423049316,1779798877000,-400.0,0.00020207,30]
[423049317,1779798877000,-3500859.83621434,0.00020207,120]
[423049309,1779798877000,-400.0,0.00020207,30]
[423049331,1779798899000,-500.0,0.00020207,31]
[423049334,1779798899000,-500.0,0.00020207,31]
[423049332,1779798899000,-500.0,0.00020207,31]
[423049329,1779798899000,-500.0,0.00020207,31]
[423049330,1779798899000,-500.0,0.00020207,31]
[423049328,1779798899000,-500.0,0.00020207,31]
[423049323,1779798899000,-24308.62189791,0.00020207,60]
[423049326,1779798899000,-5000.0,0.00020207,120]
[423049325,1779798899000,-171899.0,0.00020207,30]
[423049322,1779798899000,-183271.98009932,0.00020207,30]
[423049324,1779798899000,-10000.0,0.00020207,120]
[423049321,1779798899000,-176960.0,0.00020207,30]
[423049320,1779798899000,-2299561.11378566,0.00020207,120]
[423049327,1779798899000,-500.0,0.00020207,31]
[423049333,1779798899000,-500.0,0.00020207,31]
[423049337,1779798899000,-500.0,0.00020207,31]
[423049335,1779798899000,-500.0,0.00020207,31]
[423049336,1779798899000,-500.0,0.00020207,31]
[423049350,1779798899000,-213.69581531,0.00020207,110]
[423049348,1779798899000,-213.69581531,0.00020207,110]
[423049349,1779798899000,-213.69581531,0.00020207,110]
[423049346,1779798899000,-66080.04056064,0.00020207,30]
[423049344,1779798899000,-160.4874943,0.00020207,120]
[423049347,1779798899000,-240.67657455,0.00020207,120]
[423049342,1779798899000,-151.43380479,0.00020207,120]
[423049338,1779798899000,-289.87206938,0.00020207,31]
[423049341,1779798899000,-159.12203159,0.00020207,120]
[423049343,1779798899000,-151.43380478,0.00020207,120]
[423049340,1779798899000,-1515.46965867,0.00020207,120]
[423049339,1779798899000,-738.88148868,0.00020207,120]
[423049345,1779798899000,-160.4874943,0.00020207,120]
[423049365,1779798900000,-5000.0,0.00020207,120]
[423049366,1779798900000,-5000.0,0.00020207,120]
[423049367,1779798900000,-5000.0,0.00020207,120]
[423049364,1779798900000,-237.87758709,0.00020207,120]
[423049361,1779798900000,-237.87758712,0.00020207,120]
[423049362,1779798900000,-237.87758712,0.00020207,120]
[423049360,1779798900000,-237.87758712,0.00020207,120]
[423049359,1779798900000,-237.87758712,0.00020207,120]
[423049357,1779798900000,-237.87758712,0.00020207,120]
[423049356,1779798900000,-203.92521391,0.00020207,120]
[423049370,1779798900000,-500.0,0.00020207,31]
[423049355,1779798900000,-213.69581528,0.00020207,110]
[423049352,1779798900000,-213.69581531,0.00020207,110]
[423049354,1779798900000,-213.69581531,0.00020207,110]
[423049353,1779798900000,-213.69581531,0.00020207,110]
[423049351,1779798900000,-213.69581531,0.00020207,110]
[423049358,1779798900000,-237.87758712,0.00020207,120]
[423049369,1779798900000,-500.0,0.00020207,31]
[423049363,1779798900000,-237.87758712,0.00020207,120]
[423049371,1779798900000,-222.75403135,0.00020207,120]
[423049368,1779798900000,-152.47485356,0.00020207,120]
[423049389,1779798900000,-175.28621316,0.00020207,120]
[423049387,1779798900000,-1018.63529997,0.00020207,120]
[423049386,1779798900000,-185625.57,0.00020207,120]
[423049385,1779798900000,-69464.75,0.00020207,120]
[423049384,1779798900000,-208.65093356,0.00020207,110]
[423049383,1779798900000,-252.85167565,0.00020207,120]
[423049382,1779798900000,-208.65093357,0.00020207,110]
[423049380,1779798900000,-252.85167568,0.00020207,120]
[423049388,1779798900000,-175.28621316,0.00020207,120]
[423049379,1779798900000,-252.85167568,0.00020207,120]
[423049381,1779798900000,-252.85167568,0.00020207,120]
[423049372,1779798900000,-222.75403135,0.00020207,120]
[423049375,1779798900000,-252.85167568,0.00020207,120]
[423049374,1779798900000,-12947.84960579,0.00020207,120]
[423049373,1779798900000,-297.69774396,0.00020207,120]
[423049377,1779798900000,-252.85167568,0.00020207,120]
[423049378,1779798900000,-252.85167568,0.00020207,120]
[423049376,1779798900000,-252.85167568,0.00020207,120]
[423049407,1779798901000,-182.73239958,0.00020207,110]
[423049401,1779798901000,-297.52185174,0.00020207,120]
[423049406,1779798901000,-237.45281279,0.00020207,120]
[423049404,1779798901000,-297.52185171,0.00020207,120]
[423049405,1779798901000,-182.73239958,0.00020207,110]
[423049403,1779798901000,-297.52185174,0.00020207,120]
[423049402,1779798901000,-297.52185174,0.00020207,120]
[423049399,1779798901000,-297.52185174,0.00020207,120]
[423049394,1779798901000,-154.82238615,0.00020207,120]
[423049396,1779798901000,-178.38065132,0.00020207,110]
[423049397,1779798901000,-154.82238615,0.00020207,120]
[423049395,1779798901000,-178.38065132,0.00020207,110]
[423049393,1779798901000,-297.52185174,0.00020207,120]
[423049392,1779798901000,-178.38065132,0.00020207,110]
[423049391,1779798901000,-154.82238615,0.00020207,120]
[423049390,1779798901000,-175.28621316,0.00020207,120]
[423049409,1779798901000,-182.73239958,0.00020207,110]
[423049398,1779798901000,-297.52185174,0.00020207,120]
[423049410,1779798901000,-237.45281279,0.00020207,120]
[423049400,1779798901000,-297.52185174,0.00020207,120]
[423049408,1779798901000,-237.45281279,0.00020207,120]
[423049428,1779798901000,-506.208108,0.00020207,120]
[423049427,1779798901000,-506.208108,0.00020207,120]
[423049426,1779798901000,-506.208108,0.00020207,120]
[423049424,1779798901000,-506.208108,0.00020207,120]
[423049425,1779798901000,-506.208108,0.00020207,120]
[423049421,1779798901000,-506.208108,0.00020207,120]
[423049423,1779798901000,-506.208108,0.00020207,120]
[423049422,1779798901000,-506.208108,0.00020207,120]
[423049420,1779798901000,-506.208108,0.00020207,120]
[423049411,1779798901000,-237.45281279,0.00020207,120]
[423049419,1779798901000,-506.208108,0.00020207,120]
[423049429,1779798901000,-506.208108,0.00020207,120]
[423049418,1779798901000,-506.208108,0.00020207,120]
[423049417,1779798901000,-506.208108,0.00020207,120]
[423049414,1779798901000,-237.45281279,0.00020207,120]
[423049415,1779798901000,-237.45281279,0.00020207,120]
[423049413,1779798901000,-237.45281279,0.00020207,120]
[423049412,1779798901000,-237.45281279,0.00020207,120]
[423049416,1779798901000,-506.208108,0.00020207,120]
[423049430,1779798902000,-168.73603598,0.00020207,120]
[423049432,1779798902000,-168.73603598,0.00020207,120]
[423049431,1779798902000,-168.73603598,0.00020207,120]
[423049434,1779798902000,-284.49021,0.00020207,60]
[423049433,1779798902000,-284.49021,0.00020207,120]
[423049435,1779798902000,-1132.315773,0.00020207,30]
[423049437,1779798950000,330.79,6.85e-05,60]
[423050026,1779798976000,151.0,0.000178,120]
[423050148,1779798980000,150.0,0.00014836,30]
[423050174,1779798981000,290.0,0.00014836,30]
[423050800,1779799015000,151.0,0.000178,120]
[423050801,1779799016000,2006.85349312,0.00017808,120]
[423050803,1779799038000,-300.0,5.108e-05,2]
[423050805,1779799050000,151.0,0.000178,120]
[423050804,1779799050000,-595.84178928,5.109e-05,2]
[423050807,1779799092000,151.0,0.000178,120]
[423050806,1779799092000,-500.0,5.109e-05,2]
[423050808,1779799117000,151.0,0.000178,120]
[423050809,1779799145000,-300.0,5.108e-05,2]
[423050810,1779799156000,-500.0,5.109e-05,2]
[423050811,1779799156000,151.0,0.000178,120]
[423050814,1779799199000,-390.49940566,5.11e-05,2]
[423050816,1779799210000,-1668.32400615,5.11e-05,2]
[423050815,1779799210000,151.0,0.000178,120]
[423050820,1779799227000,151.0,0.000178,120]
[423050822,1779799266000,151.0,0.000178,120]
[423050825,1779799305000,151.0,0.000178,120]
[423050826,1779799346000,151.0,0.000178,120]
[423050827,1779799386000,151.0,0.000178,120]
[423050830,1779799426000,151.0,0.000178,120]
[423050832,1779799456000,151.0,0.000178,120]
[423050834,1779799495000,151.0,0.000178,120]
[423050837,1779799526000,151.0,0.000178,120]
[423050840,1779799649000,200.0,0.000178,120]
[423050845,1779799768000,267.0,0.00014789,30]
[423050846,1779799811000,5000.0,5.005e-05,2]
[423050994,1779799834000,5000.0,5.005e-05,2]
[423051062,1779799838000,-300.0,5.054e-05,2]
[423051086,1779799838000,-500.0,5.054e-05,2]
[423051083,1779799838000,-500.0,5.054e-05,2]
[423051080,1779799838000,-500.0,5.054e-05,2]
[423051084,1779799838000,-500.0,5.054e-05,2]
[423051078,1779799838000,-625.69302243,5.054e-05,2]
[423051081,1779799838000,-500.0,5.054e-05,2]
[423051079,1779799838000,-500.0,5.054e-05,2]
[423051076,1779799838000,-625.69302243,5.054e-05,2]
[423051077,1779799838000,-625.69302243,5.054e-05,2]
[423051075,1779799838000,-625.69302243,5.054e-05,2]
[423051071,1779799838000,-625.69302243,5.054e-05,2]
[423051074,1779799838000,-625.69302243,5.054e-05,2]
[423051069,1779799838000,-625.69302243,5.054e-05,2]
[423051070,1779799838000,-625.69302243,5.054e-05,2]
[423051072,1779799838000,-625.69302243,5.054e-05,2]
[423051068,1779799838000,-625.69302243,5.054e-05,2]
[423051066,1779799838000,-183.06203871,5.054e-05,2]
[423051067,1779799838000,-625.69302243,5.054e-05,2]
[423051063,1779799838000,-300.0,5.054e-05,2]
[423051065,1779799838000,-442.63098372,5.054e-05,2]
[423051064,1779799838000,-625.69302243,5.054e-05,2]
[423051073,1779799838000,-625.69302243,5.054e-05,2]
[423051087,1779799838000,-625.69302243,5.054e-05,2]
[423051082,1779799838000,-500.0,5.054e-05,2]
[423051088,1779799838000,-500.0,5.054e-05,2]
[423051089,1779799838000,-500.0,5.054e-05,2]
[423051113,1779799838000,-500.0,5.054e-05,2]
[423051111,1779799838000,-500.0,5.054e-05,2]
[423051112,1779799838000,-500.0,5.054e-05,2]
[423051107,1779799838000,-500.0,5.054e-05,2]
[423051108,1779799838000,-500.0,5.054e-05,2]
[423051110,1779799838000,-500.0,5.054e-05,2]
[423051109,1779799838000,-500.0,5.054e-05,2]
[423051106,1779799838000,-500.0,5.054e-05,2]
[423051105,1779799838000,-500.0,5.054e-05,2]
[423051104,1779799838000,-500.0,5.054e-05,2]
[423051102,1779799838000,-500.0,5.054e-05,2]
[423051085,1779799838000,-500.0,5.054e-05,2]
[423051101,1779799838000,-308.64629627,5.054e-05,2]
[423051090,1779799838000,-500.0,5.054e-05,2]
[423051103,1779799838000,-500.0,5.054e-05,2]
[423051091,1779799838000,-500.0,5.054e-05,2]
[423051093,1779799838000,-500.0,5.054e-05,2]
[423051094,1779799838000,-500.0,5.054e-05,2]
[423051092,1779799838000,-500.0,5.054e-05,2]
[423051095,1779799838000,-500.0,5.054e-05,2]
[423051098,1779799838000,-500.0,5.054e-05,2]
[423051097,1779799838000,-500.0,5.054e-05,2]
[423051099,1779799838000,-500.0,5.054e-05,2]
[423051100,1779799838000,-500.0,5.054e-05,2]
[423051096,1779799838000,-500.0,5.054e-05,2]
[423051125,1779799839000,-500.0,5.054e-05,2]
[423051134,1779799839000,-150.0,5.055e-05,2]
[423051128,1779799839000,-500.0,5.054e-05,2]
[423051129,1779799839000,-500.0,5.054e-05,2]
[423051133,1779799839000,-150.0,5.055e-05,2]
[423051127,1779799839000,-500.0,5.054e-05,2]
[423051124,1779799839000,-500.0,5.054e-05,2]
[423051126,1779799839000,-287.74017475,5.054e-05,2]
[423051123,1779799839000,-500.0,5.054e-05,2]
[423051116,1779799839000,-500.0,5.054e-05,2]
[423051121,1779799839000,-365.79429494,5.054e-05,2]
[423051122,1779799839000,-500.0,5.054e-05,2]
[423051119,1779799839000,-500.0,5.054e-05,2]
[423051118,1779799839000,-500.0,5.054e-05,2]
[423051135,1779799839000,-300.0,5.21e-05,2]
[423051117,1779799839000,-500.0,5.054e-05,2]
[423051115,1779799839000,-500.0,5.054e-05,2]
[423051114,1779799839000,-500.0,5.054e-05,2]
[423051120,1779799839000,-500.0,5.054e-05,2]
[423051132,1779799839000,-382.68941754,5.055e-05,2]
[423051138,1779799839000,-300.0,5.21e-05,2]
[423051136,1779799839000,-300.0,5.21e-05,2]
[423051155,1779799839000,-6247.5824936,9e-05,2]
[423051154,1779799839000,-5142.0,8.998e-05,2]
[423051153,1779799839000,-185.0,8.956e-05,2]
[423051152,1779799839000,-456.947,8.956e-05,2]